Cogmind - Beta 16 --- EXPLORER MODE // 2025.12.19 @ 13:10:47 Player: K.K.Y. Result: Destroyed by NX-8LI(R) with Subdweller Laser Performance ------------- Evolutions (0) 0 Regions Visited (3) 600 Robots Destroyed (36) 180 Value Destroyed (932) 932 Prototype IDs (7) 140 Alien Tech Used (0) 0 Bonus (0) 0 TOTAL SCORE: 1852 Bonus ------- None Cogmind --------- Core Integrity 0/250 Matter 284/300 Energy 245/265 System Corruption 1% Temperature Cool (6) Movement Core (350) Ox6 Location -10/Subcaves Parts ------- > --- POWER (1) -------- Improved Ion Engine > --- PROPULSION (2) --- (None) > --- UTILITY (3) ------ Medium Storage Unit > --- WEAPON (2) ------- Riot Gun Mining Laser > --- INVENTORY (10) --- High-capacity Storage Unit Huge Storage Unit Improved Terrain Scanner Utility Shielding Utility Shielding Light Armor Plating Light Armor Plating Makeshift Light Armor Plating Beam Rifle Peak State ------------ > --- POWER ------------ Improved Ion Engine > --- PROPULSION ------- Light Treads Light Treads > --- UTILITY ---------- Medium Storage Unit > --- WEAPON ----------- Beam Rifle Particle Gun > --- INVENTORY -------- High-capacity Storage Unit Huge Storage Unit Improved Terrain Scanner Utility Shielding Utility Shielding Light Armor Plating Light Armor Plating Makeshift Light Armor Plating Mining Laser [Rating: 10] Favorites ----------- Power Ion Engine Engine Ion Engine Propulsion Light Treads Treads Light Treads Utility Medium Storage Unit Storage Medium Storage Unit Protection Utility Shielding Weapon Medium Laser Energy Gun Medium Laser Ballistic Gun Assault Rifle Special Weapon Mining Laser Build | -11 -10 -10 -10 ------- Run | Yrd Mat Min Sub Slots Evolved 1 | . 1 . . Power . | . . . . Propulsion . | . . . . Utility 1 | . 1 . . Weapon . | . . . . Parts Attached 15 | 7 1 3 4 Power 2 | 1 . . 1 Engine 2 | 1 . . 1 Core . | . . . . Reactor . | . . . . Propulsion 4 | 2 . 2 . Treads 4 | 2 . 2 . Leg . | . . . . Wheel . | . . . . Hover . | . . . . Flight . | . . . . Utility 2 | 2 . . . Device . | . . . . Storage 1 | 1 . . . Processor . | . . . . Hackware . | . . . . Protection 1 | 1 . . . Artifact . | . . . . Weapon 7 | 2 1 1 3 Energy Gun 5 | 1 1 1 2 Energy Cannon . | . . . . Ballistic Gun 1 | 1 . . . Ballistic Cannon . | . . . . Launcher . | . . . . Special Weapon 1 | . . . 1 Impact Weapon . | . . . . Slashing Weapon . | . . . . Piercing Weapon . | . . . . Special Melee Weapon . | . . . . Unidentified Prototypes . | . . . . Parts Lost 4 | . . . 4 Power 1 | . . . 1 Propulsion 2 | . . . 2 Utility . | . . . . Weapon 1 | . . . 1 Highest Loss Streak 3 | . . . 3 To Critical Strikes . | . . . . Average Backups 7 | 2 5 8 8 Power . | . . . . Propulsion . | . . . . Utility 6 | 2 4 7 7 Weapon . | . 1 1 1 Tool/Special . | . . . . Unused Backups 7 | . . . 7 Power . | . . . . Propulsion . | . . . . Utility 7 | . . . 7 Weapon . | . . . . Tool/Special . | . . . . Average Slot Usage (%) 67 | . 70 75 60 Engine 10 | . 12 12 8 Treads 20 | . 24 25 14 Storage 12 | . 12 12 12 Energy Gun 20 | . 13 25 21 Ballistic Gun 1 | . 6 . . Special Weapon 1 | . . . 3 Peak Build Rating 10 | 7 7 8 10 Average Rating 7 | 4 5 7 8 On Entrance 5 | . 6 7 8 Avg Prop Armor Cover (%) . | . . . . Naked Turns . | . . . . Heaviest Build 23 | 19 19 20 23 Greatest Support 40 | 40 40 40 40 Greatest Overweight (x) 7 | . 5 . 7 Average Overweight (x) . | . . . 1 Largest Inventory Capacity 10 | 10 10 10 10 Average Capacity 9 | 8 10 10 10 Most Carried 10 | 5 9 9 10 Average Carried 7 | 2 5 8 8 Final Capacity 10 | 10 10 10 10 Final Carried 9 | 4 8 8 9 Class Distribution -------------------- 100% | Hacker-Mutant Dominant Class ---------------- Hacker-Mutant | -10/Materials Hacker-Mutant | -10/Mines Hacker-Mutant | -10/Subcaves Resources | -11 -10 -10 -10 ----------- Run | Yrd Mat Min Sub Matter Collected 489 | 257 94 38 100 Remotely . | . . . . Salvage Created 1223 | 101 268 395 459 Parts 62 | 9 11 25 17 Haulers Intercepted 2 | . 2 . . Recyclers Shooed . | . . . . Parts Field Recycled . | . . . . Retrieved Matter . | . . . . Parts Self-Destructed . | . . . . Prevented . | . . . . Parts Restored . | . . . . Kills | -11 -10 -10 -10 ------- Run | Yrd Mat Min Sub Combat Hostiles Destroyed 26 | . 6 9 11 Guns 25 | . 6 8 11 Classes Destroyed 10 | 2 4 1 3 Builder 1 | . . 1 . Tunneler 4 | 1 . 3 . Hauler 2 | . 2 . . Recycler 1 | 1 . . . Watcher 2 | . 2 . . Swarmer 6 | . 4 2 . Grunt 10 | . 2 7 1 Sentry 1 | . . . 1 Artisan 1 | . . . 1 Subdweller 9 | . . . 9 Best Kill Streak 4 | 1 2 4 3 Combat Bots Only 3 | . 2 3 3 Max Kills in Single Turn 2 | 1 1 2 1 Gunslinging . | . . . . Exploded . | . . . . Melee . | . . . . Uniques/NPCs Destroyed . | . . . . Combat | -11 -10 -10 -10 -------- Run | Yrd Mat Min Sub Hostile Shots Fired 128 | . 23 33 72 Missed 34 | . 6 10 18 Hits 94 | . 17 23 54 Projectile 94 | . 17 23 54 Critical Strikes 1 | . . . 1 Damage Taken 1036 | . 127 179 730 Core 258 | . 41 37 180 Absorbed by Shields . | . . . . Ignored by Resistances 628 | . 84 112 432 Core Remaining (%) 100 | 100 . . . Volleys Fired 118 | 3 27 30 58 Largest 2 | 2 2 2 2 Hottest 156 | 70 100 100 156 Shots Fired 221 | 6 45 59 111 Gun 207 | 6 45 59 97 Cannon . | . . . . Launcher . | . . . . Special 14 | . . . 14 Kinetic 17 | 3 14 . . Thermal 189 | 3 31 59 96 Explosive . | . . . . Electromagnetic 15 | . . . 15 Robot Hit Streak 44 | 6 17 26 44 Robot Miss Streak 2 | . 2 2 2 Penetration Max . | . . . . Secondary Targets 3 | . . 2 1 Max Gunslinging Chain 1 | . . 1 1 Shots Hit Robots 164 | 6 38 49 71 Core Hits 61 | 3 14 22 22 Critical Kills . | . . . . Critical Parts Destroyed . | . . . . Critical Strikes 13 | . 3 6 4 Burn 13 | . 3 6 4 Melee Attacks . | . . . . Impact . | . . . . Slashing . | . . . . Piercing . | . . . . Sneak Attacks . | . . . . Combat Hostiles . | . . . . Follow-up Attacks . | . . . . Damage Inflicted 2237 | 72 468 651 1046 Guns 2237 | 72 468 651 1046 Cannons . | . . . . Explosions . | . . . . Melee . | . . . . Ramming . | . . . . Kinetic 179 | 35 144 . . Thermal 1970 | 37 324 651 958 Explosive . | . . . . Electromagnetic 88 | . . . 88 Impact . | . . . . Slashing . | . . . . Piercing . | . . . . Highest Corruption 1 | . 1 1 1 Average Corruption 1 | . 1 1 1 Corruption Purged . | . . . . Corruption Blocked . | . . . . Effects 14 | . . 7 7 Message Errors 3 | . . 2 1 Matter Fused 5 | . . 1 4 Heat Flow Errors 2 | . . 1 1 Energy Discharges 2 | . . 2 . Data Loss (minor) 1 | . . . 1 Misfires 1 | . . 1 . Overload Shots . | . . . . Overflow Damage . | . . . . Projectiles . | . . . . Explosions . | . . . . Melee . | . . . . Knockbacks . | . . . . Impact . | . . . . Kinetic . | . . . . Secondary . | . . . . Self-Inflicted Damage . | . . . . Shots . | . . . . Rammed . | . . . . Targets Rammed . | . . . . Kicked . | . . . . Crushed . | . . . . Highest Temperature 409 | 18 156 409 177 Average Temperature 88 | 9 48 128 64 Received Heat Transfer 477 | . 75 159 243 Effects 4 | . . 4 . Energy Bleed 3 | . . 3 . Interference 1 | . . 1 . Siege Activations . | . . . . Martial Activations . | . . . . Shielding Activations . | . . . . Robots Disrupted . | . . . . Combat Hostiles . | . . . . Robots Corrupted . | . . . . Combat Hostiles . | . . . . Parts Fried . | . . . . Impact Corruptions . | . . . . Robots Melted 2 | . 1 1 . Combat Hostiles 1 | . . 1 . Parts Melted 24 | . 4 11 9 Heat Transferred 6438 | 111 1184 2368 2775 Parts Sabotaged . | . . . . Parts Stolen . | . . . . Parts Stripped . | . . . . Power Chain Reactions . | . . . . Alert | -11 -10 -10 -10 ------- Run | Yrd Mat Min Sub Maximum Alert Level . | . . . . Low Security (%) 100 | 100 100 100 . Level 1 . | . . . . Level 2 . | . . . . Level 3 . | . . . . Level 4 . | . . . . Level 5 . | . . . . High Security . | . . . . Max Security . | . . . . Peak Influence 60 | 5 50 60 . Initial . | . . . . Average 8 | 2 10 8 . Influence Increases 525 | 10 222 253 40 Destroy 0b10 Robot/C 340 | . 120 180 40 Destroy 0b10 Robot/NC 50 | 10 20 20 . Destroy Leader 88 | . 38 50 . Successful Hack 16 | . 13 3 . Destroy Structure 1 | . 1 . . Lose Combat Pursuer 30 | . 30 . . Influence Decreases 525 | 10 222 253 40 Time Decay 525 | 10 222 253 40 Squads Dispatched 2 | . 1 1 . Investigation 2 | . 1 1 . Extermination . | . . . . Reinforcement . | . . . . Assault . | . . . . Garrison . | . . . . Intercept . | . . . . Searches Triggered . | . . . . Construction Impeded . | . . . . Haulers Reinforced . | . . . . Active Scanning Responses . | . . . . Cargo Convoy Interrupts . | . . . . Stealth | -11 -10 -10 -10 --------- Run | Yrd Mat Min Sub Distress Signals 1 | . 1 . . Communications Jammed . | . . . . Distress Signals . | . . . . Times Spotted 37 | . 13 10 14 Peak Tracking Total 3 | . 2 2 3 Tactical Retreats 2 | . 2 . . Traps | -11 -10 -10 -10 ------- Run | Yrd Mat Min Sub Traps Triggered 2 | . 2 . . Indirectly . | . . . . Trap Hack Attempts . | . . . . Triggered . | . . . . Disarmed . | . . . . Reprogrammed . | . . . . Reused . | . . . . Traps Extracted . | . . . . Installed . | . . . . Triggered . | . . . . Machines | -11 -10 -10 -10 ---------- Run | Yrd Mat Min Sub Machines Disabled . | . . . . Max in Single Turn . | . . . . Machines Repaired . | . . . . Machines Dismantled . | . . . . Machines Sabotaged . | . . . . Overloaded Fab Kills . | . . . . Hacking | -11 -10 -10 -10 --------- Run | Yrd Mat Min Sub Machines Accessed 5 | . 4 1 . Terminals 5 | . 4 1 . Fabricators . | . . . . Repair Stations . | . . . . Recycling Units . | . . . . Scanalyzers . | . . . . Garrison Access . | . . . . Total Hacks 16 | . 13 3 . Successful 9 | . 8 1 . Failed 7 | . 5 2 . Catastrophic . | . . . . Database Lockouts . | . . . . Manual 15 | . 12 3 . Terminals 16 | . 13 3 . Fabricators . | . . . . Repair Stations . | . . . . Recycling Units . | . . . . Scanalyzers . | . . . . Garrison Access . | . . . . Terminal Hacks 5 | . 5 . . Prototype ID Bank 5 | . 5 . . Fabricator Hacks . | . . . . Repair Station Hacks . | . . . . Recycling Unit Hacks . | . . . . Scanalyzer . | . . . . Garrison Access Hacks . | . . . . Unauthorized Hacks 4 | . 3 1 . Terminals 4 | . 3 1 . Botnet 4 | . 3 1 . Fabricators . | . . . . Repair Stations . | . . . . Recycling Units . | . . . . Scanalyzers . | . . . . Garrison Access . | . . . . Data Cores Recovered . | . . . . Used . | . . . . Hacking Detections 5 | . 4 1 . Full Trace Events 3 | . 2 1 . Feedback Events . | . . . . Feedback Blocked . | . . . . Robot Schematics Acquired . | . . . . Robots Built . | . . . . Authchips . | . . . . Time . | . . . . Total Robot Build Rating . | . . . . Part Schematics Acquired . | . . . . Parts Built . | . . . . Authchips . | . . . . Time . | . . . . Total Part Build Rating . | . . . . Part Studies Acquired . | . . . . Parts Repaired . | . . . . Time . | . . . . Parts Recycled . | . . . . Recycled Matter . | . . . . Retrieved Matter . | . . . . Retrieved Components . | . . . . Parts Scanalyzed . | . . . . Part Schematics Acquired . | . . . . Parts Damaged . | . . . . Bothacking | -11 -10 -10 -10 ------------ Run | Yrd Mat Min Sub Used RIF Installer . | . . . . Robots Hacked . | . . . . Non-combat . | . . . . Combat . | . . . . Robot Hacks Applied . | . . . . Relay Couplers Released . | . . . . Fabnet Peak Effective % . | . . . . Robots Rewired . | . . . . Allies Hacked . | . . . . Hacks Repelled . | . . . . Allies | -11 -10 -10 -10 -------- Run | Yrd Mat Min Sub Total Allies . | . . . . Largest Group . | . . . . Highest-Rated Group . | . . . . Highest-Rated Ally . | . . . . Total Orders . | . . . . Ally Attacks . | . . . . Total Damage . | . . . . Kills . | . . . . Allies Corrupted . | . . . . Allies Melted . | . . . . Intel | -11 -10 -10 -10 ------- Run | Yrd Mat Min Sub Active Infowar (turns) . | . . . . Robot Analysis Total . | . . . . Derelict Logs Recovered 3 | . . 1 2 Drone Launches . | . . . . Drone Recoveries . | . . . . Exploration | -11 -10 -10 -10 ------------- Run | Yrd Mat Min Sub Turns Passed 3164 | 82 626 1061 1395 Spaces Moved 1539 | 44 336 599 560 Core 148 | 11 3 . 134 Treads 1391 | 33 333 599 426 Legs . | . . . . Wheels . | . . . . Hover . | . . . . Flight . | . . . . Fastest Speed 50 | 50 160 160 160 Average Speed 177 | 132 161 160 208 Slowest Speed 400 | 160 300 160 400 Overloaded Moves . | . . . . Propulsion Burnouts . | . . . . Robots Hopped . | . . . . Potential Cave-ins . | . . . . Cave-ins Triggered . | . . . . Exploration Rate (%) 51 | 4 66 96 38 Regions Visited 3 Branch Regions 2 Pre-discovered Areas 2 | . . 1 1 Known Exits Taken 3 | 1 1 1 . Unknown Exits Taken . | . . . . Scrap Searched 5 | . . . 5 Spaces Dug . | . . . . Terrain Destroyed . | . . . . Melee . | . . . . Projectile . | . . . . AOE . | . . . . Terrain Rammed . | . . . . Walls Destroyed . | . . . . Machines Disabled . | . . . . Actions | -11 -10 -10 -10 --------- Run | Yrd Mat Min Sub Total 1723 | 61 375 644 643 Wait 20 | . 3 7 10 Move 1536 | 43 335 598 560 Hop . | . . . . Pick Up 21 | 7 7 3 4 Fast Attach 3 | 3 . . . Attach 9 | 4 3 . 2 Detach 1 | 1 . . . Swap 11 | . . 3 8 Drop 4 | . . 3 1 Fire 118 | 3 27 30 58 Melee . | . . . . Ram . | . . . . Kick . | . . . . Crush . | . . . . Escape Stasis . | . . . . Rewire . | . . . . Trap . | . . . . Miscellaneous . | . . . . Route ------- -11/Scrapyard -10/Materials (discovered 2 exits: *Mat / *Min) -10/Mines (discovered 3 exits: *Mat x2 / *Sub) -10/Subcaves (discovered 1 exit: *Mat) History --------- Turn | Location | Event 8 | -11/Scrapyard | Identified exit to Materials 8 | -11/Scrapyard | Discovered exit to Materials (range 16) 83 | -11/Scrapyard | Entered Materials 83 | -10/Materials | Evolved 1 slot: Utility x1 182 | -10/Materials | Identified exit to Materials 182 | -10/Materials | Discovered exit to Materials (range 16) 312 | -10/Materials | Build established: Hacker-Mutant 685 | -10/Materials | Identified exit to Mines 685 | -10/Materials | Discovered exit to Mines (range 7) 709 | -10/Materials | Entered Mines 917 | -10/Mines | Discovered exit to Materials (range 4) 942 | -10/Mines | Discovered exit to Materials (range 16) 1147 | -10/Mines | Learned location of Storage (-8) 1449 | -10/Mines | Identified exit to Subcaves 1449 | -10/Mines | Discovered exit to Subcaves (range 5) 1770 | -10/Mines | Entered Subcaves 1771 | -10/Subcaves | Approached by a straggling Scientist 1887 | -10/Subcaves | Core integrity fell below 50% 2059 | -10/Subcaves | Disturbed a concealed Subdweller 2243 | -10/Subcaves | Identified exit to Materials 2243 | -10/Subcaves | Discovered exit to Materials (range 13) 2382 | -10/Subcaves | Shifting Twisted Machinery released Sub. Power Source 2463 | -10/Subcaves | Shifting Twisted Machinery released Sub. Machine Gun 2486 | -10/Subcaves | Learned Materials garrison access intel 2509 | -10/Subcaves | Core integrity fell below 20% 2629 | -10/Subcaves | Lost 3 parts (2n1w) 2956 | -10/Subcaves | Shifting Twisted Machinery released Sub. Laser 3161 | -10/Subcaves | A Subdweller sparked back to life 3161 | -10/Subcaves | A Subdweller sparked back to life 3161 | -10/Subcaves | A Subdweller sparked back to life 3165 | -10/Subcaves | Destroyed by NX-8LI(R) with Subdweller Laser Last Messages --------------- 02637_ Acquired Riot Gun. 02643_ Acquired 10 matter. 02659_ Subatomizers dissect the Sub. Machine Gun. 02792_ Destroyed Multitool. 02792_ WA-QYM(u) cries out in pain. 02792_ WA-QYM(u) destroyed. 02875_ 8X-6DC(R): "ECOKILL!" 02897_ Disposable Heat Sink melted. 02897_ 8X-6DC(R) destroyed. 02900_ Acquired 20 matter. Sub. Laser falls loose from the Twisted Machinery. 02957_ System corrupted: Matter fused (-6). 03161_ 0M-C2H(R) creaks and sparks as it begins to move. 03161_ NX-8LI(R) creaks and sparks as it begins to move. 03161_ WE-5K8(R) creaks and sparks as it begins to move. Map ----- +----------------------------------------------------+ | """" #???# #?????????????????????????? | | """ "" ##???# #?????????????????????????? | | "" """##????### #?????????????????????????? | | ######???????# ##?????????????????????????? | | "#????????????## #??????????????????????????? | | ""#??????????#### ##??????????????????????????? | | "#??????????# ### #???????????????????????????? | | ##?????????# # ##??????????????????????????? | | %##????????# # #????? #?????????????????? | | #????????## ##??? [ ##????????????????? | | ##?????????## #?? % ???????????????? | | #?????######## &### = ??????????????? | | #####?## ### &%## #???????????????? | | ##### ### | ## * ??????????????? | | #?## ??????????????? | | ??# #### ## ??????????????? | | ??# *%##?## ##????? ???????????????? | | ??# "" "##?##"" #?####????????????????????? | | ####"" "#?## #? ##???????????????????? | | %## #?# """" #?# #???????????????????? | | &"## #?# """" ## #???????????????????? | | &%&[""" #?### """"###### #????###????????????? | | #%#""" ##??# """##??# < R #??? #????????????? | | !###""" "##?# ## #?#?# #?? #??? ????????? | | ##?### """####?# #?# #R <## ## ????????? | | ????# """"#???# ##?#" @R < ???????? | | ???#"""""""#?###%*##?#" # < ??????? | | ???## "#?# = "#?##?##< ## #????????? | | ????## "####" "####" ?## #?????????? | | ?????# ####""" """#"" ## #?????????? | | ?????# #?# " """""" # ??????? | | ?????#" ### " " """"#?## ??????? | | ?????###### "" ###### ## ??????? | | ??????????# " ####???# #?# ???????? | | ??????????# #??????# ##? #???????? | | ??????????### ##?????# ### ????????? | | ???????????# #?????# ## ????????? | | ???????????## ##???### ## ????????? | | ???????????# #???## ##?# ?????????? | | ??????????## ##### ##??? ?????????? | | ?????????## ## ##????? ??????????? | | ???????### ### ##??????? ??????????? | | ???????# ##?# #??????????????????????? | | ???????# #### """ ## ##??????????????????????? | | ??????##" """" ####???????????????????????? | | ??????# " """### #?????????????????????????? | | ?????#" "[## ""##?## #?????????????????????????? | | ?????#"""#### ###???###?????????????????????????? | | ?????#""#???####?????????????????????????????????? | | ?????###?????????????????????????????????????????? | +----------------------------------------------------+ Best States ------------- Heat Dissipation 25 Energy Generation 12 Energy Capacity 265 Matter Stores 300 Matter Capacity 300 Sight Range 16 Terrain Scan Density 10 Resistance: KI 35 Resistance: TH 35 Resistance: EX 35 Resistance: EM 35 Resistance: I 35 Resistance: S 35 Resistance: P 35 Utility Shielding 33 Evasion (%) 50 Recoil Reduction 2 Offensive Hacking 20 Item Schematics ----------------- None Robot Schematics ------------------ None Fabricated ------------ Nothing Repaired ---------- Nothing Studied --------- None Alien Tech Used ----------------- None Achievements -------------- None Challenges ------------ None Game ------ Seed LaunchExplosiveAnalyzer Manual? 0 Play Time 00:14:44 Cumulative 212.8 hours Start 2025.12.19 @ 12:59:55 End 2025.12.19 @ 13:10:47 Sessions 1 Manual Loads 0 Difficulty Explorer Special Mode None Game No. 323 Rogue 0 Adventurer 0 Explorer 323 Win Type - Total 0 Types 0/0/0/0/0/0/0/0/0/0 Lore% 71 Gallery% 68 Achievement% 53 Wizard Run 0 Options --------- Layout 1 ASCII 0 Keyboard 0 Movement Mouse Keybinds 0 Fullscreen 1 Font 24/Smallcaps Map View 50x35 Zoom Use 0% Tactical HUD 1 Map Filters NONE Filters NONE Steam 1 RUN: 07df38d6-208d-46ed-b91b-79cd9d44f103